fUSD/lending_fUSD_20250421
["ID","MTS","AMOUNT","RATE_DAILY","PERIOD"]
[358572025,1745273455348,-2474.26,0.00043835,7]
[358572026,1745273455357,-500.0,0.00043835,7]
[358572027,1745273455367,-533.56,0.00043835,7]
[358572028,1745273455379,-500.0,0.00043835,7]
[358572029,1745273455388,-847.59,0.00043835,7]
[358572030,1745273455398,-500.0,0.00043835,7]
[358572031,1745273455407,-847.27,0.00043835,7]
[358572032,1745273455418,-351.06159959,0.00043835,7]
[358572033,1745273455427,-1385.14,0.00043835,7]
[358572034,1745273455436,-1515.36,0.00043835,7]
[358572035,1745273455445,-710.84,0.00043835,7]
[358572036,1745273455455,-500.0,0.00043835,7]
[358572037,1745273455464,-500.0,0.00043835,7]
[358572038,1745273455473,-538.62627824,0.00043835,7]
[358572039,1745273455483,-515.85028159,0.00043835,7]
[358572040,1745273455492,-500.0,0.00043835,7]
[358572041,1745273455501,-500.0,0.00043835,7]
[358572042,1745273455511,-502.80415589,0.00043835,7]
[358572043,1745273455520,-585.36,0.00043835,7]
[358572044,1745273455529,-500.0,0.00043835,7]
[358572045,1745273455538,-520.88022987,0.00043835,7]
[358572046,1745273455548,-540.95,0.00043835,7]
[358572047,1745273455558,-500.0,0.00043835,7]
[358572048,1745273455567,-500.0,0.00043835,7]
[358572049,1745273455576,-500.0,0.00043835,7]
[358572050,1745273455585,-500.0,0.00043835,7]
[358572051,1745273455594,-500.0,0.00043835,7]
[358572052,1745273455604,-500.0,0.00043835,7]
[358572053,1745273455612,-500.0,0.00043835,7]
[358572054,1745273455621,-507.01957378,0.00043835,7]
[358572055,1745273455630,-2340.33,0.00043835,7]
[358572056,1745273455639,-500.0,0.00043835,7]
[358572057,1745273455649,-500.0,0.00043835,7]
[358572058,1745273455658,-500.0,0.00043835,7]
[358572059,1745273455668,-500.0,0.00043835,7]
[358572060,1745273455677,-500.0,0.00043835,7]
[358572061,1745273455686,-500.0,0.00043835,7]
[358572062,1745273455696,-545.22833624,0.00043835,7]
[358572063,1745273455705,-500.0,0.00043835,7]
[358572064,1745273455714,-623.44,0.00043835,7]
[358572065,1745273455723,-500.0,0.00043835,7]
[358572066,1745273455732,-500.0,0.00043835,7]
[358572067,1745273455742,-500.0,0.00043835,7]
[358572068,1745273455752,-500.0,0.00043835,7]
[358572069,1745273455761,-500.0,0.00043835,7]
[358572070,1745273455770,-500.0,0.00043835,7]
[358572071,1745273455779,-500.0,0.00043835,7]
[358572072,1745273455788,-508.65372377,0.00043835,7]
[358572073,1745273455797,-500.0,0.00043835,7]
[358572074,1745273455805,-530.89504373,0.00043835,7]
[358572075,1745273455814,-500.0,0.00043835,7]
[358572076,1745273455823,-826.96,0.00043835,7]
[358572077,1745273455832,-500.0,0.00043835,7]
[358572078,1745273455841,-500.0,0.00043835,7]
[358572079,1745273455850,-522.23794724,0.00043835,7]
[358572080,1745273455859,-500.0,0.00043835,7]
[358572081,1745273455868,-500.0,0.00043835,7]
[358572082,1745273455878,-500.0,0.00043835,7]
[358572083,1745273455887,-500.0,0.00043835,7]
[358572084,1745273455897,-500.0,0.00043835,7]
[358572085,1745273455906,-519.36,0.00043835,7]
[358572086,1745273456054,-517.48407692,0.00043835,7]
[358572087,1745273456065,-1297.18,0.00043835,7]
[358572088,1745273456074,-500.0,0.00043835,7]
[358572089,1745273456084,-523.54175591,0.00043835,7]
[358572090,1745273456093,-500.0,0.00043835,7]
[358572091,1745273456103,-500.0,0.00043835,7]
[358572092,1745273456112,-556.56704273,0.00043835,7]
[358572093,1745273456122,-514.13,0.00043835,7]
[358572094,1745273456131,-500.0,0.00043835,7]
[358572095,1745273456142,-500.0,0.00043835,7]
[358572096,1745273456152,-211.67294945,0.00043835,7]
[358572097,1745273456161,-500.0,0.00043835,7]
[358572098,1745273456171,-519.24522242,0.00043835,7]
[358572099,1745273456181,-980.71,0.00043835,7]
[358572100,1745273456191,-550.66901227,0.00043835,7]
[358572101,1745273456200,-500.0,0.00043835,7]
[358572102,1745273456210,-500.0,0.00043835,7]
[358572103,1745273456219,-500.0,0.00043835,7]
[358572104,1745273456229,-509.16568546,0.00043835,7]
[358572105,1745273456241,-500.0,0.00043835,7]
[358572106,1745273456250,-500.0,0.00043835,7]
[358572107,1745273456259,-500.0,0.00043835,7]
[358572108,1745273456269,-500.0,0.00043835,7]
[358572109,1745273456281,-500.0,0.00043835,7]
[358572110,1745273456290,-511.39605233,0.00043835,7]
[358572111,1745273456299,-500.0,0.00043835,7]
[358572112,1745273456309,-558.8831218,0.00043835,7]
[358572113,1745273456319,-706.63,0.00043835,7]
[358572114,1745273456328,-512.76993139,0.00043835,7]
[358572115,1745273456338,-500.0,0.00043835,7]
[358572116,1745273456347,-527.29942996,0.00043835,7]
[358572117,1745273456357,-500.0,0.00043835,7]
[358572118,1745273456367,-500.0,0.00043835,7]
[358572119,1745273456379,-579.09,0.00043835,7]
[358572120,1745273456390,-500.0,0.00043835,7]
[358572121,1745273456399,-500.0,0.00043835,7]
[358572122,1745273456408,-500.0,0.00043835,7]
[358572123,1745273456417,-528.50294025,0.00043835,7]
[358572124,1745273456426,-858.69,0.00043835,7]
[358572125,1745273456436,-499.40560064,0.00043835,7]
[358572126,1745273456445,-500.0,0.00043835,7]
[358572127,1745273456457,-500.0,0.00043835,7]
[358572128,1745273456466,-536.07576053,0.00043835,7]
[358572129,1745273456477,-881.75,0.00043835,7]
[358572130,1745273456487,-500.0,0.00043835,7]
[358572131,1745273456496,-711.53,0.00043835,7]
[358572132,1745273456506,-407.45219783,0.00043835,7]
[358572133,1745273456515,-884.65,0.00043835,7]
[358572134,1745273456525,-500.0,0.00043835,7]
[358572135,1745273456535,-500.0,0.00043835,7]
[358572136,1745273456544,-904.67,0.00043835,7]
[358572137,1745273456554,-500.0,0.00043835,7]
[358572138,1745273456563,-500.0,0.00043835,7]
[358572139,1745273456573,-1183.26,0.00043835,7]
[358572140,1745273456582,-500.0,0.00043835,7]
[358572141,1745273456591,-546.21,0.00043835,7]
[358572142,1745273456600,-500.0,0.00043835,7]
[358572143,1745273456610,-1290.34,0.00043835,7]
[358572144,1745273456620,-300.0,0.00043835,7]
[358572145,1745273456629,-508.92842956,0.00043835,7]
[358572146,1745273456639,-1419.16,0.00043835,7]
[358572147,1745273456648,-250.0,0.00043835,7]
[358572148,1745273456658,-500.0,0.00043835,7]
[358572149,1745273456667,-863.91,0.00043835,7]
[358572150,1745273456676,-500.0,0.00043835,7]
[358572151,1745273456686,-1668.61,0.00043835,7]
[358572152,1745273456695,-500.0,0.00043835,7]
[358572153,1745273456704,-500.0,0.00043835,7]
[358572154,1745273456714,-1001.34,0.00043835,7]
[358572155,1745273456724,-500.0,0.00043835,7]
[358572156,1745273456733,-500.0,0.00043835,7]
[358572157,1745273456743,-500.0,0.00043835,7]
[358572158,1745273456752,-500.0,0.00043835,7]
[358572159,1745273456761,-500.0,0.00043835,7]
[358572160,1745273456771,-2387.71,0.00043835,7]
[358572161,1745273456781,-500.0,0.00043835,7]
[358572162,1745273456790,-500.0,0.00043835,7]
[358572163,1745273456799,-500.0,0.00043835,7]
[358572164,1745273456808,-500.0,0.00043835,7]
[358572165,1745273456818,-500.0,0.00043835,7]
[358572166,1745273456827,-569.67769164,0.00043835,7]
[358572167,1745273456836,-500.0,0.00043835,7]
[358572168,1745273456846,-500.0,0.00043835,7]
[358572169,1745273456855,-1099.51,0.00043835,7]
[358572170,1745273456865,-500.0,0.00043835,7]
[358572171,1745273456874,-500.0,0.00043835,7]
[358572172,1745273456883,-315.18854177,0.00043835,7]
[358572173,1745273456891,-657.93,0.00043835,7]
[358572174,1745273456901,-500.0,0.00043835,7]
[358572175,1745273456910,-500.0,0.00043835,7]
[358572176,1745273456919,-500.0,0.00043835,7]
[358572177,1745273456927,-581.16156744,0.00043835,7]
[358572178,1745273456948,-500.0,0.00043835,7]
[358572179,1745273456965,-786.17,0.00043835,7]
[358572180,1745273456986,-470.36159641,0.00043835,7]
[358572181,1745273457004,-500.0,0.00043835,7]
[358572182,1745273457022,-500.0,0.00043835,7]
[358572183,1745273457041,-500.0,0.00043835,7]
[358572184,1745273457060,-1738.61,0.00043835,7]
[358572185,1745273457080,-1177.97,0.00043835,7]
[358572186,1745273457098,-151.0,0.00043835,14]
[358572187,1745273457117,-151.0,0.00043835,14]
[358572188,1745273457132,-523.5591838,0.00043835,7]
[358572189,1745273457146,-1533.1,0.00043835,7]
[358572190,1745273457164,-500.0,0.00043835,7]
[358572191,1745273457178,-500.0,0.00043835,7]
[358572192,1745273457195,-293.89774268,0.00043835,7]
[358572193,1745273457210,-601.4,0.00043835,7]
[358572194,1745273457226,-500.0,0.00043835,7]
[358572195,1745273457242,-604.48,0.00043835,7]
[358572196,1745273457257,-500.0,0.00043835,7]
[358572197,1745273457274,-500.0,0.00043835,7]
[358572198,1745273457288,-508.80593065,0.00043835,7]
[358572199,1745273457303,-500.0,0.00043835,7]
[358572200,1745273457318,-947.57,0.00043835,7]
[358572201,1745273457333,-500.0,0.00043835,7]
[358572202,1745273457348,-500.0,0.00043835,7]
[358572203,1745273457363,-502.76895736,0.00043835,7]
[358572204,1745273457382,-500.0,0.00043835,7]
[358572205,1745273457398,-500.0,0.00043835,7]
[358572206,1745273457413,-246.99605944,0.00043835,7]
[358572207,1745273457428,-1198.33,0.00043835,7]
[358572208,1745273457442,-779.43,0.00043835,7]
[358572209,1745273457460,-500.0,0.00043835,7]
[358572210,1745273457476,-500.0,0.00043835,7]
[358572211,1745273457491,-500.0,0.00043835,7]
[358572212,1745273457505,-580.05,0.00043835,7]
[358572213,1745273457520,-927.9,0.00043835,7]
[358572214,1745273457535,-500.0,0.00043835,7]
[358572215,1745273457550,-500.0,0.00043835,7]
[358572216,1745273457565,-500.0,0.00043835,7]
[358572217,1745273457580,-500.0,0.00043835,7]
[358572218,1745273457595,-500.0,0.00043835,7]
[358572219,1745273457610,-511.61757937,0.00043835,7]
[358572220,1745273457626,-500.0,0.00043835,7]
[358572221,1745273457642,-500.0,0.00043835,7]
[358572222,1745273457657,-500.0,0.00043835,7]
[358572223,1745273457672,-1505.54,0.00043835,7]
[358572224,1745273457687,-500.0,0.00043835,7]
[358572225,1745273457703,-628.36224432,0.00043835,7]
[358572226,1745273457718,-540.35378768,0.00043835,7]
[358572227,1745273457733,-500.0,0.00043835,7]
[358572228,1745273457749,-635.74,0.00043835,7]
[358572229,1745273457765,-500.0,0.00043835,7]
[358572230,1745273457780,-500.0,0.00043835,7]
[358572231,1745273457795,-507.27195687,0.00043835,7]
[358572232,1745273457810,-500.0,0.00043835,7]
[358572233,1745273457826,-729.68,0.00043835,7]
[358572234,1745273457841,-500.0,0.00043835,7]
[358572235,1745273457857,-500.0,0.00043835,7]
[358572236,1745273457872,-1567.41,0.00043835,7]
[358572237,1745273457887,-511.09068982,0.00043835,7]
[358572238,1745273457902,-606.94479741,0.00043835,7]
[358572239,1745273457917,-151.0,0.00043835,14]
[358572240,1745273457932,-500.0,0.00043835,7]
[358572241,1745273457949,-1953.23,0.00043835,7]
[358572242,1745273457963,-1438.84,0.00043835,7]
[358572243,1745273457977,-151.0,0.00043835,14]
[358572244,1745273457992,-151.0,0.00043835,14]
[358572245,1745273458007,-151.0,0.00043835,14]
[358572246,1745273458022,-182.24609953,0.00043835,7]
[358572247,1745273458036,-500.0,0.00043835,7]
[358572248,1745273458051,-500.0,0.00043835,7]
[358572249,1745273458067,-2454.44,0.00043835,7]
[358572250,1745273458081,-500.0,0.00043835,7]
[358572251,1745273458097,-500.0,0.00043835,7]
[358572252,1745273458111,-500.0,0.00043835,7]
[358572253,1745273458127,-951.19,0.00043835,7]
[358572254,1745273458142,-500.0,0.00043835,7]
[358572255,1745273458157,-500.0,0.00043835,7]
[358572256,1745273458171,-500.0,0.00043835,7]
[358572257,1745273458186,-500.0,0.00043835,7]
[358572258,1745273458201,-500.0,0.00043835,7]
[358572259,1745273458215,-500.0,0.00043835,7]
[358572260,1745273458230,-500.0,0.00043835,7]
[358572261,1745273458241,-513.79755867,0.00043835,7]
[358572262,1745273458250,-500.0,0.00043835,7]
[358572263,1745273458260,-500.0,0.00043835,7]
[358572264,1745273458269,-507.40607286,0.00043835,7]
[358572265,1745273458278,-500.0,0.00043835,7]
[358572266,1745273458287,-500.0,0.00043835,7]
[358572267,1745273458297,-500.0,0.00043835,7]
[358572268,1745273458557,-500.0,0.00043835,7]
[358572269,1745273458594,-500.0,0.00043835,7]
[358572270,1745273458606,-1772.65,0.00043835,7]
[358572271,1745273458615,-500.0,0.00043835,7]
[358572272,1745273458625,-500.0,0.00043835,7]
[358572273,1745273458635,-500.0,0.00043835,7]
[358572274,1745273458645,-1520.58,0.00043835,7]
[358572275,1745273458655,-194.54647264,0.00043835,7]
[358572276,1745273458665,-500.0,0.00043835,7]
[358572277,1745273458674,-542.70522221,0.00043835,7]
[358572278,1745273458684,-500.0,0.00043835,7]
[358572279,1745273458694,-500.0,0.00043835,30]
[358572280,1745273458703,-500.0,0.00043835,7]
[358572281,1745273458712,-1100.31,0.00043835,7]
[358572282,1745273458722,-500.0,0.00043835,7]
[358572283,1745273458732,-500.0,0.00043835,7]
[358572284,1745273458741,-500.0,0.00043835,7]
[358572285,1745273458750,-500.0,0.00043835,7]
[358572286,1745273458760,-500.0,0.00043835,7]
[358572287,1745273458769,-151.0,0.00043835,14]
[358572288,1745273458778,-500.0,0.00043835,7]
[358572289,1745273458788,-151.0,0.00043835,14]
[358572290,1745273458797,-1134.03,0.00043835,7]
[358572291,1745273458806,-500.0,0.00043835,7]
[358572292,1745273458816,-2906.42,0.00043835,7]
[358572293,1745273458825,-500.0,0.00043835,7]
[358572294,1745273458835,-1000.0,0.00043835,120]
[358572295,1745273458845,-500.0,0.00043835,7]
[358572296,1745273458854,-765.04,0.00043835,7]
[358572297,1745273458864,-500.0,0.00043835,7]
[358572298,1745273458874,-151.0,0.00043835,14]
[358572299,1745273458884,-283.493687,0.00043835,14]
[358572300,1745273458894,-500.0,0.00043835,7]
[358572301,1745273458903,-658.02,0.00043835,7]
[358572302,1745273458913,-500.0,0.00043835,7]
[358572303,1745273458923,-500.0,0.00043835,7]
[358572304,1745273458932,-500.0,0.00043835,7]
[358572305,1745273458941,-609.59310858,0.00043835,7]
[358572306,1745273458951,-500.0,0.00043835,7]
[358572307,1745273458960,-500.0,0.00043835,7]
[358572308,1745273458969,-513.12425238,0.00043835,7]
[358572309,1745273458979,-702.96,0.00043835,7]
[358572310,1745273458989,-500.0,0.00043835,7]
[358572311,1745273458998,-496.46746673,0.00043835,7]
[358572312,1745273459007,-517.25861802,0.00043835,7]
[358572313,1745273459017,-687.2,0.00043835,7]
[358572314,1745273459027,-500.0,0.00043835,7]
[358572315,1745273459036,-2940.54723371,0.00043835,7]
[358572316,1745273459046,-164.57165954,0.00043835,7]
[358572317,1745273459055,-500.0,0.00043835,7]
[358572318,1745273459064,-500.0,0.00043835,7]
[358572319,1745273459073,-260.08050782,0.00043835,7]
[358572320,1745273459082,-500.0,0.00043835,7]
[358572321,1745273459091,-523.35333491,0.00043835,7]
[358572322,1745273459100,-151.0,0.00043835,14]
[358572323,1745273459108,-151.0,0.00043835,14]
[358572324,1745273459117,-1543.41,0.00043835,7]
[358572325,1745273459126,-500.0,0.00043835,7]
[358572326,1745273459135,-500.0,0.00043835,7]
[358572327,1745273459144,-500.0,0.00043835,7]
[358572328,1745273459155,-281.54601056,0.00043835,7]
[358572329,1745273459164,-500.0,0.00043835,7]
[358572330,1745273459175,-500.0,0.00043835,7]
[358572331,1745273459184,-500.0,0.00043835,7]
[358572332,1745273459194,-500.0,0.00043835,7]
[358572333,1745273459204,-500.0,0.00043835,7]
[358572334,1745273459213,-500.0,0.00043835,7]
[358572335,1745273459223,-500.0,0.00043835,7]
[358572336,1745273459232,-1256.12,0.00043835,7]
[358572337,1745273459242,-255.71604731,0.00043835,7]
[358572338,1745273459251,-500.0,0.00043835,7]
[358572339,1745273459260,-500.0,0.00043835,7]
[358572340,1745273459271,-500.0,0.00043835,7]
[358572341,1745273459280,-621.72,0.00043835,7]
[358572342,1745273459289,-500.0,0.00043835,7]
[358572343,1745273459298,-500.0,0.00043835,7]
[358572344,1745273459308,-586.10973081,0.00043835,7]
[358572345,1745273459318,-489.14296144,0.00043835,7]
[358572346,1745273459327,-500.0,0.00043835,7]
[358572347,1745273459336,-500.0,0.00043835,7]
[358572348,1745273459346,-151.0,0.00043835,14]
[358572349,1745273459355,-500.0,0.00043835,7]
[358572350,1745273459364,-151.0,0.00043835,14]
[358572351,1745273459374,-500.0,0.00043835,7]
[358572352,1745273459387,-500.0,0.00043835,7]
[358572353,1745273459396,-500.0,0.00043835,7]
[358572354,1745273459406,-500.0,0.00043835,7]
[358572355,1745273459416,-506.68,0.00043835,7]
[358572356,1745273459425,-519.75703681,0.00043835,7]
[358572357,1745273459434,-500.0,0.00043835,7]
[358572358,1745273459443,-500.0,0.00043835,7]
[358572359,1745273459455,-531.3166053,0.00043835,7]
[358572360,1745273459464,-500.0,0.00043835,7]
[358572361,1745273459474,-151.0,0.00043835,14]
[358572362,1745273459484,-161.401979,0.00043835,14]
[358572363,1745273459493,-509.45169711,0.00043835,7]
[358572364,1745273459502,-500.0,0.00043835,7]
[358572365,1745273459511,-1317.58,0.00043835,7]
[358572366,1745273459520,-500.0,0.00043835,7]
[358572367,1745273459530,-528.25161392,0.00043835,7]
[358572368,1745273459539,-500.0,0.00043835,7]
[358572369,1745273459548,-500.0,0.00043835,7]
[358572370,1745273459558,-527.27337386,0.00043835,7]
[358572371,1745273459567,-500.0,0.00043835,7]
[358572372,1745273459577,-685.99,0.00043835,7]
[358572373,1745273459586,-821.12,0.00043835,7]
[358572374,1745273459596,-500.0,0.00043835,7]
[358572375,1745273459606,-797.08,0.00043835,7]
[358572376,1745273459616,-1948.41,0.00043835,7]
[358572377,1745273459625,-500.0,0.00043835,7]
[358572378,1745273459635,-1659.14,0.00043835,7]
[358572379,1745273459646,-1048.75,0.00043835,7]
[358572380,1745273459655,-1221.11,0.00043835,7]
[358572381,1745273459664,-500.0,0.00043835,7]
[358572382,1745273459674,-316.24995362,0.00043835,7]
[358572383,1745273459684,-500.0,0.00043835,7]
[358572384,1745273459693,-1335.52,0.00043835,7]
[358572385,1745273459702,-500.0,0.00043835,7]
[358572386,1745273459712,-500.0,0.00043835,7]
[358572387,1745273459721,-500.0,0.00043835,7]
[358572388,1745273459730,-500.0,0.00043835,7]
[358572389,1745273459740,-500.0,0.00043835,7]
[358572390,1745273459750,-553.39676626,0.00043835,7]
[358572391,1745273459759,-500.0,0.00043835,7]
[358572392,1745273459770,-500.0,0.00043835,7]
[358572393,1745273459781,-500.0,0.00043835,7]
[358572394,1745273459791,-500.0,0.00043835,7]
[358572395,1745273459801,-500.0,0.00043835,7]
[358572396,1745273459810,-816.95,0.00043835,7]
[358572397,1745273459820,-515.19328853,0.00043835,7]
[358572398,1745273459829,-520.15825522,0.00043835,7]
[358572399,1745273459838,-672.04,0.00043835,7]
[358572400,1745273459847,-530.00277573,0.00043835,7]
[358572401,1745273459857,-151.0,0.00043835,14]
[358572402,1745273459866,-151.0,0.00043835,14]
[358572403,1745273459875,-500.0,0.00043835,7]
[358572404,1745273459885,-500.0,0.00043835,7]
[358572405,1745273459894,-500.0,0.00043835,7]
[358572406,1745273459903,-1122.27,0.00043835,7]
[358572407,1745273459913,-500.0,0.00043835,7]
[358572408,1745273459922,-500.0,0.00043835,7]
[358572409,1745273459931,-500.0,0.00043835,7]
[358572410,1745273459940,-500.0,0.00043835,7]
[358572411,1745273459950,-500.0,0.00043835,7]
[358572412,1745273459959,-278.13441836,0.00043835,7]
[358572413,1745273459968,-500.0,0.00043835,7]
[358572414,1745273459978,-500.0,0.00043835,7]
[358572415,1745273459987,-583.75,0.00043835,7]
[358572416,1745273459996,-500.0,0.00043835,7]
[358572417,1745273460006,-762.02,0.00043835,7]
[358572418,1745273460016,-941.01,0.00043835,7]
[358572419,1745273460026,-500.0,0.00043835,7]
[358572420,1745273460036,-500.0,0.00043835,7]
[358572421,1745273460046,-151.0,0.00043835,14]
[358572422,1745273460055,-151.0,0.00043835,14]
[358572423,1745273460065,-331.90258797,0.00043835,7]
[358572424,1745273460075,-510.56674127,0.00043835,7]
[358572425,1745273460084,-216.54777681,0.00043835,7]
[358572426,1745273460093,-151.0,0.00043835,14]
[358572427,1745273460103,-500.0,0.00043835,7]
[358572428,1745273460112,-151.0,0.00043835,14]
[358572429,1745273460122,-625.50746254,0.00043835,7]
[358572430,1745273460132,-500.0,0.00043835,7]
[358572431,1745273460142,-529.81360383,0.00043835,7]
[358572432,1745273460151,-2000.0,0.00043835,7]
[358572433,1745273460160,-500.0,0.00043835,7]
[358572434,1745273460170,-500.0,0.00043835,7]
[358572435,1745273460179,-500.0,0.00043835,7]
[358572436,1745273460189,-522.23935088,0.00043835,7]
[358572437,1745273460199,-500.0,0.00043835,7]
[358572438,1745273460208,-500.0,0.00043835,7]
[358572439,1745273460218,-500.0,0.00043835,7]
[358572440,1745273460227,-500.0,0.00043835,7]
[358572441,1745273460237,-500.0,0.00043835,7]
[358572442,1745273460247,-500.0,0.00043835,7]
[358572443,1745273460257,-500.0,0.00043835,7]
[358572444,1745273460267,-500.0,0.00043835,7]
[358572445,1745273460276,-500.0,0.00043835,7]
[358572446,1745273460286,-500.0,0.00043835,7]
[358572447,1745273460295,-500.0,0.00043835,7]
[358572448,1745273460305,-500.0,0.00043835,7]
[358572449,1745273460314,-500.0,0.00043835,7]
[358572450,1745273460323,-500.0,0.00043835,7]
[358572451,1745273460333,-500.0,0.00043835,7]
[358572452,1745273460343,-500.0,0.00043835,7]
[358572453,1745273460353,-500.0,0.00043835,7]
[358572454,1745273460363,-500.0,0.00043835,7]
[358572455,1745273460372,-500.0,0.00043835,7]
[358572456,1745273460383,-525.22,0.00043835,7]
[358572457,1745273460393,-1158.5,0.00043835,7]
[358572458,1745273460403,-500.0,0.00043835,7]
[358572459,1745273460414,-298.49501163,0.00043835,7]
[358572460,1745273460423,-500.0,0.00043835,7]
[358572461,1745273460433,-500.0,0.00043835,7]
[358572462,1745273460443,-772.47,0.00043835,7]
[358572463,1745273460456,-500.0,0.00043835,7]
[358572464,1745273460466,-500.0,0.00043835,7]
[358572465,1745273460476,-500.0,0.00043835,7]
[358572466,1745273460486,-159.768622,0.00043835,14]
[358572467,1745273460496,-159.768622,0.00043835,14]
[358572468,1745273460505,-500.0,0.00043835,7]
[358572469,1745273460515,-500.0,0.00043835,7]
[358572470,1745273460525,-500.0,0.00043835,7]
[358572471,1745273460536,-159.768622,0.00043835,14]
[358572472,1745273460546,-500.0,0.00043835,7]
[358572473,1745273460556,-159.768622,0.00043835,14]
[358572474,1745273460566,-500.0,0.00043835,7]
[358572475,1745273460575,-500.0,0.00043835,7]
[358572476,1745273460584,-583.01,0.00043835,7]
[358572477,1745273460594,-500.0,0.00043835,7]
[358572478,1745273460604,-500.0,0.00043835,7]
[358572479,1745273460614,-500.0,0.00043835,7]
[358572480,1745273460623,-500.0,0.00043835,7]
[358572481,1745273460633,-544.42752104,0.00043835,7]
[358572482,1745273460643,-151.0,0.00043835,14]
[358572483,1745273460653,-349.1095234,0.00043835,7]
[358572484,1745273460662,-500.0,0.00043835,7]
[358572485,1745273460672,-151.0,0.00043835,14]
[358572486,1745273460682,-500.0,0.00043835,7]
[358572487,1745273460691,-500.0,0.00043835,7]
[358572488,1745273460701,-151.0,0.00043835,14]
[358572489,1745273460711,-500.0,0.00043835,7]
[358572490,1745273460721,-151.0,0.00043835,14]
[358572491,1745273460732,-500.0,0.00043835,7]
[358572492,1745273460742,-500.0,0.00043835,7]
[358572493,1745273460751,-500.0,0.00043835,7]
[358572494,1745273460761,-500.0,0.00043835,7]
[358572495,1745273460772,-500.0,0.00043835,7]
[358572496,1745273460782,-500.0,0.00043835,7]
[358572497,1745273460792,-973.17,0.00043835,7]
[358572498,1745273460801,-500.0,0.00043835,7]
[358572499,1745273460811,-500.0,0.00043835,7]
[358572500,1745273460821,-500.0,0.00043835,7]
[358572501,1745273460830,-867.69,0.00043835,7]
[358572502,1745273460840,-500.0,0.00043835,7]
[358572503,1745273460849,-2820.63,0.00043835,7]
[358572504,1745273460859,-547.50236607,0.00043835,7]
[358572505,1745273460868,-2820.63,0.00043835,7]
[358572506,1745273460878,-613.44249931,0.00043835,7]
[358572507,1745273460887,-2820.63,0.00043835,7]
[358572508,1745273460896,-2820.63,0.00043835,7]
[358572509,1745273460905,-2820.63,0.00043835,7]
[358572510,1745273460914,-2820.63,0.00043835,7]
[358572511,1745273460923,-500.0,0.00043835,7]
[358572512,1745273460932,-2820.63,0.00043835,7]
[358572513,1745273460942,-2820.63,0.00043835,7]
[358572514,1745273460951,-2820.63,0.00043835,7]
[358572515,1745273460960,-500.0,0.00043835,7]
[358572516,1745273460969,-2820.63,0.00043835,7]
[358572517,1745273460979,-2820.63,0.00043835,7]
[358572518,1745273460988,-2820.63,0.00043835,7]
[358572519,1745273460998,-500.0,0.00043835,7]
[358572520,1745273461007,-2820.63,0.00043835,7]
[358572521,1745273461016,-2820.63,0.00043835,7]
[358572522,1745273461026,-2820.63,0.00043835,7]
[358572523,1745273461035,-2820.63,0.00043835,7]
[358572524,1745273461045,-2820.63,0.00043835,7]